bitfinex-derivatives/quotes_ETHF0:USTF0_20251203
["timestamp","ask_amount","ask_price","bid_price","bid_amount"]
[1764720002597,9.041,2994.7,2994.6,3.07602124]
[1764720002895,9.0445324,2994.7,2994.6,3.08019612]
[1764720003094,9.0445324,2994.7,2994.6,5.98739612]
[1764720003293,9.0445324,2994.7,2994.6,2.91137488]
[1764720003693,2.8819324,2994.7,2994.6,5.68317488]
[1764720003886,0.0035324,2994.7,2994.6,5.85009488]
[1764720004196,5.6050324,2994.7,2994.6,5.85009488]
[1764720004383,5.6050324,2994.7,2994.6,0.00417488]
[1764720004590,8.8128324,2994.7,2994.6,0.00417488]
[1764720004895,1.623,2994.0,2993.5,6.8783]
[1764720005096,7.2245,2994.0,2993.9,5.5024]
[1764720005399,7.2245,2994.0,2993.5,1.3759]
[1764720005592,7.2245,2994.0,2993.9,2.7306]
[1764720005789,7.2245,2994.0,2993.9,2.7332919]
[1764720005989,5.6015,2994.0,2993.9,5.5050919]
[1764720006191,4.8308,2994.5,2993.9,5.5050919]
[1764720006398,5.6015,2994.5,2994.4,5.5024]
[1764720006596,7.2245,2994.5,2994.4,2.7306]
[1764720006791,5.6015,2994.2,2994.1,5.66934]
[1764720006991,5.6015,2994.2,2994.1,0.16694]
[1764720007200,3.24e-05,2994.7,2994.6,5.66932]
[1764720007496,1.623,2996.5,2995.5,5.66926]
[1764720007497,5.6015,2995.6,2995.5,5.66926]
[1764720007697,5.6015,2995.6,2995.5,2.89746]
[1764720007996,2.7377,2995.8,2995.7,5.5024]
[1764720008400,0.00261458,2995.8,2995.7,5.5024]
[1764720008599,0.00261458,2995.8,2995.7,5.66925]
[1764720009902,5.60411458,2995.8,2995.7,5.66925]
[1764720010802,5.60411458,2995.8,2995.7,8.87705]
[1764720011301,0.00261458,2995.8,2995.7,10.6672115]
[1764720011494,3.2078,2996.4,2996.3,5.66922]
[1764720011689,3.19860663,2996.4,2996.3,5.66922]
[1764720011894,3.07183304,2996.4,2996.3,5.66922]
[1764720012302,3.2078,2996.8,2996.7,0.16679]
[1764720012499,5.6015,2997.1,2997.0,5.5024]
[1764720012695,5.60444169,2997.1,2997.0,5.5024]
[1764720013500,0.00294169,2997.1,2997.0,10.58438]
[1764720013698,5.60444169,2997.1,2997.0,5.66918]
[1764720014598,0.00294169,2997.1,2997.0,7.04508]
[1764720014798,0.00294169,2997.1,2997.0,10.25288]
[1764720015000,4.169e-05,2997.1,2997.0,10.25288]
[1764720015806,4.169e-05,2997.1,2997.0,12.04276959]
[1764720015996,4.169e-05,2997.1,2997.0,18.04276959]
[1764720016202,4.685e-05,2997.3,2997.2,5.66917]
[1764720016400,4.685e-05,2997.3,2997.2,7.45324387]
[1764720016608,4.685e-05,2997.3,2997.2,11.81635003]
[1764720016909,4.685e-05,2997.3,2997.2,10.03227616]
[1764720017412,3.2078,2998.4,2997.9,0.16673]
[1764720017708,8.8093,2998.4,2998.3,5.5024]
[1764720018004,3.2078,2998.4,2998.3,5.66911]
[1764720018307,3.21085875,2998.4,2998.3,5.66911]
[1764720018903,5.60455875,2998.4,2998.3,5.66911]
[1764720019104,2.74075875,2998.4,2998.3,8.87691]
[1764720019502,0.00305875,2998.4,2998.3,8.87691]
[1764720019903,3.2078,2999.0,2998.9,0.16668]
[1764720020209,3.2078,2999.3,2999.2,5.66906]
[1764720020501,3.2078,2999.9,2999.2,8.87686]
[1764720020706,3.2078,2999.9,2999.3,0.16665]
[1764720020904,5.6015,2999.4,2999.3,5.67140201]
[1764720021410,3.21691116,2999.9,2999.4,0.16664]
[1764720022409,3.21691116,2999.9,2999.4,5.66904]
[1764720022410,2.7377,2999.5,2999.4,5.66904]
[1764720022608,3.21691116,2999.9,2999.4,5.66904]
[1764720022810,5.6015,2999.5,2999.4,5.66904]
[1764720023009,5.6015,2999.4,2999.3,0.00235201]
[1764720023809,5.6015,2999.4,2998.1,0.00500516]
[1764720023810,11.6015,2999.4,2998.3,3.2078]
[1764720024010,4.8308,2999.0,2998.3,3.2078]
[1764720024208,4.8308,2999.0,2998.4,5.5024]
[1764720024409,4.8308,2999.0,2998.5,1.5369]
[1764720024810,4.8308,2999.0,2998.5,1.53990036]
[1764720025608,5.9455,2999.0,2998.9,5.5024]
[1764720026011,1.623,2999.5,2998.8,0.16668]
[1764720026012,4.8308,2999.5,2999.0,0.16667]
[1764720026203,4.8308,2999.5,2999.1,0.16666]
[1764720026603,8.8093,2999.5,2999.4,2.7306]
[1764720027808,8.8093,2999.5,2999.4,5.5024]
[1764720028001,8.8093,2999.5,2999.4,2.7306]
[1764720029300,2.7377,2999.3,2999.2,2.89726]
[1764720029510,7.2245,2999.5,2999.4,2.7306]
[1764720029703,8.8093,2999.8,2999.7,2.7306]
[1764720030014,5.6015,2999.6,2999.5,5.5024]
[1764720030209,0.00911116,2999.9,2999.1,5.5024]
[1764720030210,5.6015,2999.2,2999.1,5.5024]
[1764720030416,1.623,2999.5,2999.1,8.7102]
[1764720031009,7.2245,2999.5,2999.4,2.7306]
[1764720032312,5.6015,2999.2,2999.1,0.16666]
[1764720033511,5.6015,2999.2,2999.1,2.89726]
[1764720034716,5.6015,2999.2,2999.1,0.16666]
[1764720035617,5.6015,2999.2,2999.1,5.17456]
[1764720035818,2.7377,2999.2,2999.1,5.17456]
[1764720036024,2.7377,2999.2,2999.1,8.38236]
[1764720036222,5.376,2999.2,2999.1,0.16666]
[1764720037520,5.376,2999.2,2999.1,2.53736]
[1764720039021,5.376,2999.2,2999.1,4.98406]
[1764720040022,5.376,2999.2,2999.1,0.16666]
[1764720040422,4.768,2998.9,2998.8,3.2078]
[1764720041722,1.4458,2999.0,2998.6,2.41529]
[1764720041723,4.768,2998.7,2998.6,2.41529]
[1764720042226,4.768,2998.7,2998.6,4.86199]
[1764720043017,7.9758,2999.3,2999.2,4.6953]
[1764720043226,4.768,2999.2,2999.1,0.16666]
[1764720043720,4.768,2998.7,2998.6,0.16669]
[1764720043926,4.768,2998.7,2998.6,2.41529]
[1764720044827,1.4458,2999.0,2998.9,4.6953]
[1764720045028,6.2138,2999.0,2998.9,4.6953]
[1764720045928,6.2138,2999.0,2998.9,2.2486]
[1764720047330,6.2138,2999.0,2998.9,4.6953]
[1764720047726,6.2138,2999.0,2998.9,2.2486]
[1764720048627,6.2138,2999.0,2998.8,3.37448]
[1764720048826,4.768,2998.9,2998.8,3.37448]
[1764720049028,4.768,2998.9,2998.8,0.16668]
[1764720050431,4.768,2998.9,2998.8,2.41528]
[1764720050628,4.768,2998.9,2998.8,4.86198]
[1764720050834,4.768,2998.9,2998.8,2.41528]
[1764720051233,3.857,2999.4,2998.8,4.86198]
[1764720051535,3.857,2999.4,2998.9,4.86198]
[1764720051536,6.2138,2999.0,2998.9,4.86198]
[1764720053040,6.2138,2999.0,2998.9,0.16668]
[1764720053437,6.2138,2999.0,2998.9,4.86198]
[1764720053640,6.2138,2999.0,2998.9,2.41528]
[1764720055142,6.2138,2999.0,2998.9,4.86198]
[1764720056042,6.2138,2999.0,2998.9,2.41528]
[1764720056343,6.2138,2999.0,2998.9,4.86198]
[1764720056842,2.4447,2999.0,2998.9,4.86198]
[1764720057738,4.768,2999.0,2998.9,4.86198]
[1764720058251,2.4447,2999.0,2998.9,4.86198]
[1764720058548,2.4447,2999.0,2998.8,4.98991184]
[1764720058549,4.768,2999.4,2999.3,4.6953]
[1764720058754,2.4447,2999.4,2999.3,4.6953]
[1764720059155,4.768,2999.7,2999.6,4.6953]
[1764720059451,4.77711116,2999.9,2999.8,4.6953]
[1764720060753,4.768,2998.6,2998.5,0.00300036]
[1764720061047,4.768,2998.2,2997.5,5.6093435]
[1764720061247,2.4447,2997.1,2997.0,6.1276]
[1764720061447,4.768,2997.1,2996.5,7.6237025]
[1764720061647,3.2078,2996.9,2996.5,1.4323]
[1764720061854,4.768,2996.6,2996.5,0.0028995]
[1764720062251,4.768,2996.6,2996.5,3.6837995]
[1764720062451,3.08494561,2996.9,2996.8,4.6953]
[1764720062645,3.2078,2997.5,2997.4,4.6953]
[1764720063241,1.90986989,2999.0,2997.4,4.6953]
[1764720063447,2.5987,2998.3,2998.2,5.0776]
[1764720063648,5.0689,2998.0,2997.9,0.00500516]
[1764720063848,9.7073,2998.0,2997.9,0.00500516]
[1764720064349,6.4995,2998.0,2997.9,0.00500516]
[1764720064649,5.0732317,2998.3,2998.0,1.4152]
[1764720064857,5.0689,2998.0,2997.9,0.17173516]
[1764720065445,2.5987,2998.0,2997.9,5.24933516]
[1764720065948,5.0689,2998.0,2997.9,2.79473516]
[1764720066346,0.0043317,2998.3,2997.9,5.24933516]
[1764720066552,2.6030317,2998.3,2998.2,5.0776]
[1764720067242,5.0732317,2998.3,2998.2,2.623]
[1764720067450,2.5987,2998.1,2998.0,6.4928]
[1764720068551,5.8108317,2998.3,2998.2,5.0776]
[1764720068751,8.2810317,2998.3,2998.2,2.623]
[1764720068952,8.2810317,2998.3,2998.2,5.0776]
[1764720069453,3.2121317,2998.3,2998.2,5.0776]
[1764720069654,0.0043317,2998.3,2998.2,8.2854]
[1764720070452,0.0043317,2998.3,2998.2,8.45211]
[1764720072757,0.00500516,2998.5,2998.4,0.1667]
[1764720072954,0.00500516,2998.5,2998.4,5.2443]
[1764720074066,0.00891961,2998.5,2998.4,5.2443]
[1764720075558,0.00891961,2998.5,2998.4,20.88168059]
[1764720076765,5.0689,2998.3,2998.2,5.59418059]
[1764720076959,5.0689,2998.3,2998.2,3.2078]
[1764720077264,0.00891961,2998.5,2998.4,5.0776]
[1764720077461,5.07781961,2998.5,2998.2,3.37451]
[1764720077660,5.0689,2998.3,2998.2,0.16671]
[1764720078965,5.07781961,2998.5,2998.4,5.0776]
[1764720079268,5.0689,2998.3,2998.2,5.24431]
[1764720079567,5.0689,2998.3,2998.2,0.16671]
[1764720080067,5.0689,2998.3,2998.2,2.78971]
[1764720080269,5.0689,2998.3,2998.2,5.24431]
[1764720080863,5.0689,2998.3,2998.2,7.03456119]
[1764720081358,2.5987,2998.3,2998.2,7.03456119]
[1764720081564,5.07781961,2998.5,2998.4,2.623]
[1764720081763,5.0689,2998.3,2998.2,7.03456119]
[1764720082066,5.0689,2998.3,2998.2,1.95696119]
[1764720082967,5.0689,2998.3,2998.2,4.57996119]
[1764720083171,5.0689,2998.3,2998.2,7.03456119]
[1764720084769,5.0689,2998.3,2998.2,1.95696119]
[1764720085868,0.00891961,2998.5,2998.2,7.03456119]
[1764720086067,5.07781961,2998.5,2998.4,2.623]
[1764720086267,5.07781961,2998.5,2998.4,5.2443]
[1764720086473,2.60761961,2998.5,2998.4,5.2443]
[1764720086874,5.07781961,2998.5,2998.4,5.2443]
[1764720087773,5.07781961,2998.5,2998.4,2.7897]
[1764720088677,9.71621961,2998.5,2998.4,0.1667]
[1764720088872,5.0689,2998.3,2998.2,1.79025119]
[1764720089070,5.0689,2998.3,2998.2,6.86785119]
[1764720090171,5.81541961,2998.5,2998.4,5.0776]
[1764720090365,8.28561961,2998.5,2998.4,2.623]
[1764720090570,5.0689,2998.4,2998.3,1.79237113]
[1764720090874,5.0689,2998.4,2998.3,4.41537113]
[1764720091078,5.0689,2998.4,2998.3,6.86997113]
[1764720091574,3.21671961,2998.5,2998.3,6.86997113]
[1764720091776,3.21671961,2998.5,2998.4,5.0776]
[1764720092076,8.2767,2998.9,2998.8,5.0776]
[1764720092277,8.2767,2998.9,2998.8,6.8697895]
[1764720092576,5.8065,2998.9,2998.8,6.8697895]
[1764720092771,3.2078,2998.9,2998.8,5.0776]
[1764720093175,5.80930332,2998.9,2998.8,5.0799687]
[1764720093572,5.3258,2998.7,2998.0,4.1770435]
[1764720093879,9.21060332,2998.9,2997.9,2.66410516]
[1764720093880,5.0018,2998.0,2997.9,2.66410516]
[1764720094379,5.0018,2998.0,2997.9,0.00500516]
[1764720094581,5.0018,2998.0,2997.9,0.00868382]
[1764720095767,6.1208,2998.0,2997.9,0.00868382]
[1764720096477,5.0018,2998.0,2997.9,0.00868382]
[1764720097179,5.0018,2998.0,2997.9,2.91928382]
[1764720097773,5.0018,2998.0,2997.9,0.00868382]
[1764720098778,8.8588,2998.0,2997.9,0.00868382]
[1764720098981,8.8588,2998.0,2997.9,5.56298382]
[1764720099877,5.0018,2998.0,2997.9,5.56298382]
[1764720100071,3.2078,2998.1,2998.0,7.48143]
[1764720100486,3.2078,2998.4,2998.3,5.5543]
[1764720100980,2.7078,2998.4,2998.3,5.5543]
[1764720101190,8.9415,2998.7,2998.6,5.5543]
[1764720101476,5.7337,2998.4,2998.3,0.16671]
[1764720101780,5.7337,2998.4,2997.9,2.91928382]
[1764720101781,5.7337,2998.0,2997.9,2.91928382]
[1764720101986,2.8948,2998.0,2997.9,5.56298382]
[1764720102187,8.9415,2998.0,2997.9,2.91928382]
[1764720102680,8.9415,2998.0,2997.9,0.00868382]
[1764720103783,5.7337,2997.6,2997.5,1.4152]
[1764720104482,3.2078,2998.0,2997.5,6.9695]
[1764720104681,3.2078,2998.0,2997.5,6.97450516]
[1764720104884,3.2078,2998.0,2997.5,6.9774355]
[1764720105779,7.0648,2998.0,2997.5,6.9774355]
[1764720106782,12.7985,2998.0,2997.9,2.9106]
[1764720107884,5.7337,2997.7,2997.6,5.72104]
[1764720108586,5.7337,2997.6,2997.5,0.0079355]
[1764720109184,5.7337,2997.1,2997.0,0.16678]
[1764720109387,8.9415,2997.1,2997.0,0.16678]
[1764720109687,3.2078,2997.1,2997.0,7.48148]
[1764720109888,3.2078,2997.5,2997.0,7.48148]
[1764720110078,8.9415,2997.5,2997.4,5.5543]
[1764720110279,8.9415,2997.5,2997.4,5.55715834]
[1764720110280,6.1026,2997.5,2997.4,5.55715834]
[1764720110974,8.9415,2997.5,2997.4,5.55715834]
[1764720111687,6.1026,2997.5,2997.4,5.55715834]
[1764720112483,8.9415,2997.5,2997.4,2.91345834]
[1764720112788,8.9415,2997.5,2997.4,0.00285834]
[1764720113287,8.9415,2997.5,2997.4,2.91345834]
[1764720113787,8.9415,2997.5,2997.4,0.00285834]
[1764720114194,8.9415,2997.5,2997.4,2.91345834]
[1764720114687,8.9415,2997.5,2997.4,5.55715834]
[1764720114893,3.2078,2997.5,2997.4,5.72391834]
[1764720116889,0.00500516,2997.7,2997.4,5.72391834]
[1764720117095,0.00500516,2997.7,2997.6,5.72105]
[1764720118494,5.16e-06,2997.7,2997.6,5.72105]
[1764720127705,5.16e-06,2997.7,2997.6,8.92885]
[1764720128205,5.16e-06,2997.7,2997.6,22.16885]
[1764720131313,5.16e-06,2997.7,2997.6,5.72105]
[1764720131619,5.16e-06,2997.7,2997.6,21.31485]
[1764720134218,4.9804,2997.6,2997.5,2.39192466]
[1764720134423,4.9804,2997.5,2997.4,0.00285834]
[1764720134618,4.9804,2997.4,2997.3,10.105]
[1764720134818,4.9804,2997.3,2997.2,0.00500516]
[1764720135720,4.9804,2997.3,2997.2,0.00759286]
[1764720135920,10.9804,2997.3,2997.2,0.00759286]
[1764720141124,4.9804,2997.3,2997.2,0.00759286]
[1764720145222,8.8374,2997.3,2997.2,0.00759286]
[1764720146229,8.8374,2997.3,2997.2,2.65019286]
[1764720147027,8.8374,2997.3,2997.2,5.45159286]
[1764720147327,8.8374,2997.3,2997.2,0.00759286]
[1764720147726,8.8374,2997.3,2997.2,2.65019286]
[1764720148028,8.8374,2997.3,2997.2,0.00759286]
[1764720150831,8.8374,2997.3,2997.2,5.45159286]
[1764720151127,6.3434,2997.3,2997.2,5.45159286]
[1764720151329,8.8374,2997.3,2997.2,5.45159286]
[1764720151731,8.8374,2997.3,2997.2,2.65019286]
[1764720153333,8.8374,2997.3,2997.2,0.00759286]
[1764720157031,3.314,2997.0,2996.9,0.16679]
[1764720157231,3.857,2997.3,2996.5,6.5999]
[1764720157232,3.2198,2996.6,2996.5,6.5999]
[1764720157432,3.2078,2997.1,2996.5,6.76671]
[1764720157627,6.4276,2997.1,2997.0,1.3334]
[1764720158129,5.16e-06,2997.7,2997.6,0.16675]
[1764720158331,3.2078,2998.6,2998.5,6.1729]
[1764720158635,7.7473,2998.6,2998.1,3.2078]
[1764720158837,4.5395,2998.6,2998.1,3.2078]
[1764720159030,2.328,2998.2,2998.1,8.0473]
[1764720159234,4.54450516,2998.4,2998.3,4.8395]
[1764720160338,0.0032359,2998.6,2998.5,6.1729]
[1764720160636,2.3312359,2998.6,2998.5,9.3807]
[1764720160833,4.5427359,2998.6,2998.5,9.3807]
[1764720161731,1.8312359,2998.6,2998.5,9.3807]
[1764720161937,1.3362359,2998.6,2998.5,9.3807]
[1764720162431,1.3362359,2998.6,2998.0,6.8554]
[1764720162432,4.5395,2998.6,2998.1,2.39192466]
[1764720162637,2.328,2998.2,2998.1,8.0473]
[1764720162938,2.33044919,2998.2,2998.1,8.0473]
[1764720163437,4.54194919,2998.2,2998.1,8.0473]
[1764720163838,4.54194919,2998.2,2998.0,1.50013]
[1764720164029,4.5395,2998.1,2998.0,3.91643]
[1764720164634,4.5395,2998.1,2998.0,6.33963]
[1764720166037,2.328,2997.6,2997.5,6.9575]
[1764720166232,2.328,2997.6,2997.5,9.54745]
[1764720166440,4.54194919,2998.2,2998.1,2.4163]
[1764720166942,4.54194919,2998.2,2997.7,0.16674]
[1764720167437,2.328,2997.8,2997.7,5.00624]
[1764720168541,0.00244919,2998.2,2997.5,4.5412]
[1764720168542,4.54194919,2998.2,2998.1,4.8395]
[1764720168732,2.33044919,2998.2,2998.1,4.8395]
[1764720168938,0.00244919,2998.2,2998.1,5.00622]
[1764720169238,6.185,2998.7,2998.6,4.8395]
[1764720169434,3.857,2998.7,2998.6,4.8395]
[1764720169835,4.5395,2998.5,2998.4,0.00500516]
[1764720170034,4.5395,2998.5,2998.4,4.84450516]
[1764720170247,0.00397547,2998.5,2998.4,5.01120516]
[1764720170545,3.21280516,2998.8,2998.4,5.01120516]
[1764720170546,3.21280516,2998.8,2998.7,5.00619]
[1764720170736,7.7473,2999.1,2999.0,6.1729]
[1764720170937,7.7473,2999.4,2999.3,4.8395]
[1764720171136,7.7473,2999.4,2999.3,2.4163]
[1764720171337,7.74995521,2999.4,2999.3,2.41952239]
[1764720171639,5.53845521,2999.4,2999.3,4.84272239]
[1764720171843,7.74995521,2999.4,2999.3,4.84272239]
[1764720172640,4.54215521,2999.4,2999.3,4.84272239]
[1764720172840,4.54215521,2999.4,2999.3,8.05052239]
[1764720173148,2.33065521,2999.4,2999.3,4.84272239]
[1764720173448,0.00265521,2999.4,2999.3,4.84272239]
[1764720173845,4.54215521,2999.4,2999.3,8.05052239]
[1764720175654,4.54215521,2999.4,2999.3,0.00322239]
[1764720177444,4.54215521,2999.4,2999.3,2.41952239]
[1764720177646,4.54215521,2999.4,2999.3,4.84272239]
[1764720178052,4.54215521,2999.4,2999.3,2.41952239]
[1764720178850,4.54215521,2999.4,2999.3,0.00322239]
[1764720179352,4.54215521,2999.4,2999.3,4.84272239]
[1764720180754,4.5395,3000.5,3000.0,1.3334]
[1764720180958,2.328,3000.1,3000.0,9.3807]
[1764720181642,2.33204304,3000.1,3000.0,9.3807]
[1764720182150,4.54354304,3000.1,3000.0,3.2078]
[1764720182344,4.5395,2999.8,2999.7,0.00500516]
[1764720182540,4.5395,2999.4,2999.3,0.00322239]
[1764720187557,4.6323,2999.2,2999.1,0.00500516]
[1764720187856,4.6323,2998.5,2998.4,5.5417]
[1764720188057,4.6323,2998.5,2998.4,3.2078]
[1764720188558,4.6323,2998.5,2998.4,3.21159924]
[1764720189750,4.6323,2998.5,2998.4,5.54549924]
[1764720190161,2.2415,2998.5,2998.4,7.92719924]
[1764720190360,4.63730516,2998.7,2998.6,2.3339]
[1764720190658,2.24650516,2998.7,2998.6,4.7156]
[1764720190958,4.63730516,2998.7,2998.6,4.7156]
[1764720193856,2.2415,2998.6,2998.5,1.5106]
[1764720194057,4.6323,2998.6,2998.5,0.1667]
[1764720194262,4.6323,2998.6,2998.5,3.8445]
[1764720194566,4.6323,2998.6,2998.5,6.2262]
[1764720194861,4.6323,2998.6,2998.5,3.8445]
[1764720195063,4.6323,2998.6,2998.5,0.1667]
[1764720195452,5.6803,2998.5,2998.4,0.00379924]
[1764720195653,4.6323,2998.3,2998.2,0.00500516]
[1764720195852,4.6323,2997.6,2997.5,7.04185]
[1764720196252,2.2415,2997.6,2997.5,9.42355]
[1764720196463,3.857,2997.9,2997.8,4.7156]
[1764720196763,6.10089815,2997.9,2997.8,4.7156]
[1764720197063,2.2415,2997.7,2997.6,4.88735516]
[1764720197257,3.85939815,2997.9,2997.6,4.88735516]
[1764720197563,8.49169815,2997.9,2997.8,2.3339]
[1764720199254,4.6323,2997.7,2997.6,0.17175516]
[1764720199458,2.2415,2997.7,2997.6,4.88735516]
[1764720199962,4.6323,2997.7,2997.6,4.88735516]
[1764720200473,4.6323,2997.7,2997.6,2.50565516]
[1764720200766,4.6323,2997.7,2997.6,0.17175516]
[1764720200969,4.6323,2997.7,2997.6,2.50565516]
[1764720201867,4.6323,2997.7,2997.6,4.88735516]
[1764720202865,4.6323,2997.7,2997.6,0.00500516]
[1764720203071,3.857,2997.7,2997.5,0.00408408]
[1764720203370,4.6323,2997.6,2997.5,0.00408408]
[1764720206072,4.6323,2997.6,2997.5,2.33798408]
[1764720206267,3.857,2997.8,2997.7,4.7156]
[1764720206472,3.857,2997.8,2997.7,4.88234]
[1764720206670,3.85199484,2997.8,2997.7,8.09014]
[1764720206874,7.8401,2998.5,2998.4,4.7156]
[1764720207074,3.2078,2998.5,2998.4,4.7156]
[1764720207769,5.4532465,2998.5,2998.4,4.7156]
[1764720207982,4.6323,2998.4,2998.3,0.16671]
[1764720208367,2.2415,2998.1,2998.0,9.2673]
[1764720209170,4.6323,2998.1,2998.0,6.0595]
[1764720209373,4.6323,2997.9,2997.8,4.88234]
[1764720209768,2.2415,2997.9,2997.8,4.88234]
[1764720211974,4.6323,2997.9,2997.8,4.88234]
[1764720212481,2.2415,2997.9,2997.8,4.88234]
[1764720213275,4.6323,2997.9,2997.8,2.48864]
[1764720213676,4.2597465,2998.5,2997.8,4.79794]
[1764720214070,2.214,2997.9,2997.8,4.79794]
[1764720214672,3.2117465,2998.5,2997.8,4.79794]
[1764720214876,3.2117465,2998.5,2998.0,1.4052]
[1764720215975,4.5374,2998.1,2998.0,3.74483]
[1764720216175,4.5374,2997.6,2997.5,0.00408408]
[1764720217878,8.3944,2997.6,2997.5,0.00408408]
[1764720218181,8.3944,2997.6,2997.5,2.17698408]
[1764720218977,8.3944,2997.6,2997.5,3.58218408]
[1764720219381,8.3944,2997.6,2997.5,5.89038408]
[1764720219884,8.3944,2997.6,2997.5,0.00408408]
[1764720220181,8.3944,2997.6,2997.5,3.58218408]
[1764720220377,8.3944,2997.6,2997.5,5.89038408]
[1764720221374,6.1041,2997.6,2997.5,5.89038408]
[1764720221578,3.857,2997.6,2997.5,5.89038408]
[1764720221779,6.1041,2997.6,2997.5,5.89038408]
[1764720221980,3.857,2997.6,2997.5,5.89038408]
[1764720222586,3.2078,2998.1,2997.5,5.89038408]
[1764720223073,3.857,2998.2,2997.5,5.89038408]
[1764720223280,3.2078,2998.1,2997.5,5.89038408]
[1764720223480,2.2471,2997.6,2997.5,5.89038408]
[1764720224385,2.2471,2997.6,2997.5,6.05713408]
[1764720224685,4.5374,2998.1,2998.0,2.1729]
[1764720225284,7.7452,2998.1,2998.0,2.1729]
[1764720225486,7.7452,2998.1,2997.6,0.16675]
[1764720226187,7.7452,2998.1,2998.0,3.5781]
[1764720226577,7.7452,2998.1,2997.6,0.16675]
[1764720226989,2.2471,2997.7,2997.6,4.64785]
[1764720227987,5.4549,2998.1,2998.0,5.8863]
[1764720228191,2.2471,2998.1,2998.0,5.8863]
[1764720228384,4.5374,2997.7,2997.6,2.1729]
[1764720228581,4.5374,2997.6,2997.5,3.58218408]
[1764720228890,4.5374,2997.6,2997.5,5.89038408]
[1764720231088,3.857,2998.3,2997.5,5.89038408]
[1764720231290,3.857,2998.3,2997.7,3.2078]
[1764720231488,2.2903,2998.1,2997.7,3.2078]
[1764720231684,4.5374,2997.8,2997.7,7.6889]
[1764720231884,4.5374,2997.8,2997.7,4.4811]
[1764720232289,4.5374,2997.6,2997.5,5.89038408]
[1764720232686,2.2471,2997.6,2997.5,5.89038408]
[1764720232890,4.5374,2997.6,2997.5,5.89038408]
[1764720235587,4.5374,2997.6,2997.5,3.58218408]
[1764720235790,4.5374,2997.6,2997.5,5.89038408]
[1764720236794,3.2078,2998.2,2997.5,5.89038408]
[1764720237099,8.3944,2998.1,2997.5,1.40928408]
[1764720237791,4.5374,2997.6,2997.5,0.00408408]
[1764720238003,5.4549,2997.8,2997.7,4.4811]
[1764720238192,4.5374,2997.6,2997.5,5.89038408]
[1764720240400,4.5374,2997.6,2997.5,0.00408408]
[1764720241101,4.5374,2997.6,2997.5,3.58218408]
[1764720241497,4.5374,2997.6,2997.5,5.89038408]
[1764720242403,3.2078,2998.1,2997.5,5.89038408]
[1764720242600,3.2078,2998.1,2997.5,6.05713408]
[1764720242601,2.2471,2997.6,2997.5,6.05713408]
[1764720242901,3.2078,2998.1,2997.5,6.05713408]
[1764720244201,4.2273,2997.6,2997.5,1.40928408]
[1764720244401,4.2273,2997.6,2997.5,0.00408408]
[1764720245601,4.2273,2997.2,2997.1,3.2078]
[1764720246107,4.2273,2996.9,2996.8,3.2078]
[1764720246397,3.2078,2996.9,2996.3,2.39192466]
[1764720246602,4.2273,2996.4,2996.3,4.27680516]
[1764720246800,4.23121173,2996.4,2996.3,4.27944768]
[1764720247191,2.06801173,2996.4,2996.3,4.27944768]
[1764720248608,0.00391173,2996.4,2996.3,4.27944768]
[1764720249300,2.06801173,2996.4,2996.3,4.27944768]
[1764720249900,0.00391173,2996.4,2996.3,4.27944768]
[1764720250612,0.00391173,2996.4,2996.3,4.44626768]
[1764720251311,2.06910516,2996.9,2996.8,4.2718]
[1764720251514,4.23230516,2996.9,2996.8,4.2718]
[1764720251697,0.00500516,2996.9,2996.6,3.2078]
[1764720251902,4.2273,2996.6,2996.5,3.3078]
[1764720252402,4.2273,2996.4,2996.3,0.00764768]
[1764720253210,2.1632,2995.9,2995.8,1.9887]
[1764720253512,4.2273,2995.9,2995.8,1.9887]
[1764720253911,2.0641,2995.9,2995.8,4.2718]
[1764720254211,3.2078,2996.4,2995.8,4.27597728]
[1764720254398,5.2719,2996.4,2996.3,4.2718]
[1764720254599,4.2273,2996.1,2996.0,3.3078]
[1764720254802,4.2273,2996.1,2996.0,1.3191]
[1764720255200,4.2273,2996.1,2996.0,5.5909]
[1764720255802,4.2273,2996.1,2996.0,3.3078]
[1764720256405,0.00316128,2996.6,2996.0,5.5909]
[1764720256805,2.0641,2996.1,2996.0,5.5909]
[1764720257304,4.2273,2996.1,2996.0,1.3191]
[1764720257508,4.2273,2996.0,2995.9,2.15554]
[1764720257702,4.2273,2996.0,2995.9,0.16684]
[1764720258006,4.2273,2996.0,2995.9,2.15554]
[1764720258200,2.0641,2996.4,2996.3,4.2718]
[1764720258396,4.23046128,2996.6,2996.1,3.2078]
[1764720258610,8.08746128,2996.6,2996.1,3.2078]
[1764720259005,4.2273,2996.3,2996.2,4.43863]
[1764720259517,8.08746128,2996.6,2996.5,5.5909]
[1764720260211,8.08746128,2996.6,2996.5,3.3078]
[1764720261212,8.08746128,2996.6,2996.5,1.3191]
[1764720261513,4.23046128,2996.6,2996.5,1.3191]
[1764720261811,4.23046128,2996.6,2996.5,5.5909]
[1764720262106,2.06726128,2996.6,2996.5,5.5909]
[1764720262309,0.00316128,2996.6,2996.5,5.5909]
[1764720262612,2.06726128,2996.6,2996.5,5.5909]
[1764720264318,0.00316128,2996.6,2996.5,5.5909]
[1764720265512,2.06726128,2996.6,2996.5,5.5909]
[1764720265714,0.00316128,2996.6,2996.5,5.5909]
[1764720265905,2.06726128,2996.6,2996.5,5.5909]
[1764720266316,0.00316128,2996.6,2996.5,5.5909]
[1764720266613,0.00316128,2996.6,2996.5,5.75771]
[1764720268417,0.00316128,2996.6,2996.5,0.16681]
[1764720268418,4.23046128,2996.6,2996.5,0.16681]
[1764720268618,4.23046128,2996.6,2996.5,5.75771]
[1764720268820,0.00316128,2996.6,2996.5,5.75771]
[1764720269923,4.23046128,2996.6,2996.5,5.75771]
[1764720270925,4.23046128,2996.6,2996.5,3.47461]
[1764720271623,4.2273,2996.5,2996.4,5.1965]
[1764720271815,0.00316128,2996.6,2996.5,5.5909]
[1764720272015,4.23046128,2996.6,2996.5,5.5909]